{"text_format":"1","workbook":"xlsx","n_sheets":8,"sheets":["Тест","Результаты","1","2","3","4","5","6"],"not_rendered":{"charts":0,"images":17,"macros":1,"external_links":0,"defined_names":1,"comments":0,"pivot_tables":0},"unopened":[],"bounds":{"document_bytes":16777216,"sheet_cells":100000,"rows_first":2000,"rows_last":500,"rows_between":2000,"halvings":0,"cell_chars":16384,"cell_head_chars":4096},"cells_cut":0,"cells_raw":0,"read":"whole","date_system":"1900"}

{"sheet":"Тест","index":0,"n_rows":25,"n_cols":10,"rows_kept":25,"cut":false,"hidden":false,"merged":[]}
[]
[]
[]
[]
[]
[]
[]
[]
[]
[null,"Вопросы для сдачи периодических проверок на пригодность к действиям в условиях, связанных с применением огнестрельного ору-"]
[]
[null,"жия работниками Банка России, Росинкаса, Сбербанка России, ГЦСС либо соответствующего территориального подразделения."]
[]
[]
[]
[]
[]
[]
[]
[]
[]
[]
[]
[null,null,null,null,null,null,"          Сергей Логинов © 2014 Тамбов"]
[null,null,null,null,null,null,"       Сайт:","www.loginov.at.ua",null,"e-mail:goozclan@mail.ru"]

{"sheet":"Результаты","index":1,"n_rows":130,"n_cols":7,"rows_kept":130,"cut":false,"hidden":false,"merged":[]}
["Номер вопроса",null,"Номер правильного ответа",null,"Номер указанного ответа",null,"Результат"]
[1,null,1,null,{"$f":"'1'!O1","v":0},null,{"$f":"IF(C2=E2,\"Верно\",\"Неверно\")","v":"Неверно"}]
[2,null,1,null,{"$f":"'2'!O1","v":1},null,{"$f":"IF(C3=E3,\"Верно\",\"Неверно\")","v":"Верно"}]
[3,null,1,null,{"$f":"'3'!O1","v":0},null,{"$f":"IF(C4=E4,\"Верно\",\"Неверно\")","v":"Неверно"}]
[4,null,3,null,null,null,"Неверно"]
[5,null,1,null,null,null,"Неверно"]
[6,null,1,null,null,null,"Неверно"]
[7,null,1,null,null,null,"Неверно"]
[8,null,1,null,null,null,"Неверно"]
[9,null,2,null,null,null,"Неверно"]
[10,null,1,null,null,null,"Неверно"]
[11,null,3,null,null,null,"Неверно"]
[12,null,1,null,null,null,"Неверно"]
[13,null,1,null,null,null,"Неверно"]
[14,null,1,null,null,null,"Неверно"]
[15,null,1,null,null,null,"Неверно"]
[16,null,1,null,null,null,"Неверно"]
[17,null,1,null,null,null,"Неверно"]
[18,null,1,null,null,null,"Неверно"]
[19,null,1,null,null,null,"Неверно"]
[20,null,3,null,null,null,"Неверно"]
[21,null,3,null,null,null,"Неверно"]
[22,null,3,null,null,null,"Неверно"]
[23,null,1,null,null,null,"Неверно"]
[24,null,1,null,null,null,"Неверно"]
[25,null,1,null,null,null,"Неверно"]
[26,null,3,null,null,null,"Неверно"]
[27,null,1,null,null,null,"Неверно"]
[28,null,1,null,null,null,"Неверно"]
[29,null,1,null,null,null,"Неверно"]
[30,null,1,null,null,null,"Неверно"]
[31,null,2,null,null,null,"Неверно"]
[32,null,2,null,null,null,"Неверно"]
[33,null,1,null,null,null,"Неверно"]
[34,null,1,null,null,null,"Неверно"]
[35,null,1,null,null,null,"Неверно"]
[36,null,3,null,null,null,"Неверно"]
[37,null,1,null,null,null,"Неверно"]
[38,null,2,null,null,null,"Неверно"]
[39,null,1,null,null,null,"Неверно"]
[40,null,1,null,null,null,"Неверно"]
[41,null,1,null,null,null,"Неверно"]
[42,null,1,null,null,null,"Неверно"]
[43,null,2,null,null,null,"Неверно"]
[44,null,2,null,null,null,"Неверно"]
[45,null,2,null,null,null,"Неверно"]
[46,null,1,null,null,null,"Неверно"]
[47,null,1,null,null,null,"Неверно"]
[48,null,1,null,null,null,"Неверно"]
[49,null,1,null,null,null,"Неверно"]
[50,null,2,null,null,null,"Неверно"]
[51,null,2,null,null,null,"Неверно"]
[52,null,2,null,null,null,"Неверно"]
[53,null,2,null,null,null,"Неверно"]
[54,null,2,null,null,null,"Неверно"]
[55,null,2,null,null,null,"Неверно"]
[56,null,2,null,null,null,"Неверно"]
[57,null,2,null,null,null,"Неверно"]
[58,null,2,null,null,null,"Неверно"]
[59,null,1,null,null,null,"Неверно"]
[60,null,2,null,null,null,"Неверно"]
[61,null,1,null,null,null,"Неверно"]
[62,null,2,null,null,null,"Неверно"]
[63,null,3,null,null,null,"Неверно"]
[64,null,1,null,null,null,"Неверно"]
[65,null,1,null,null,null,"Неверно"]
[66,null,1,null,null,null,"Неверно"]
[67,null,3,null,null,null,{"$f":"IF(C68=E68,\"Верно\",\"Неверно\")","v":"Неверно"}]
[68,null,2,null,null,null,"Неверно"]
[69,null,3,null,null,null,"Неверно"]
[70,null,1,null,null,null,"Неверно"]
[71,null,3,null,null,null,"Неверно"]
[72,null,2,null,null,null,"Неверно"]
[73,null,1,null,null,null,"Неверно"]
[74,null,3,null,null,null,"Неверно"]
[75,null,1,null,null,null,"Неверно"]
[76,null,2,null,null,null,"Неверно"]
[77,null,2,null,null,null,"Неверно"]
[78,null,1,null,null,null,"Неверно"]
[79,null,1,null,null,null,"Неверно"]
[80,null,3,null,null,null,"Неверно"]
[81,null,2,null,null,null,"Неверно"]
[82,null,2,null,null,null,"Неверно"]
[83,null,3,null,null,null,"Неверно"]
[84,null,3,null,null,null,"Неверно"]
[85,null,3,null,null,null,"Неверно"]
[86,null,1,null,null,null,"Неверно"]
[87,null,3,null,null,null,"Неверно"]
[88,null,1,null,null,null,"Неверно"]
[89,null,1,null,null,null,"Неверно"]
[90,null,1,null,null,null,"Неверно"]
[91,null,2,null,null,null,"Неверно"]
[92,null,1,null,null,null,"Неверно"]
[93,null,3,null,null,null,"Неверно"]
[94,null,3,null,null,null,"Неверно"]
[95,null,3,null,null,null,"Неверно"]
[96,null,3,null,null,null,"Неверно"]
[97,null,1,null,null,null,"Неверно"]
[98,null,3,null,null,null,"Неверно"]
[99,null,1,null,null,null,"Неверно"]
[100,null,3,null,null,null,"Неверно"]
[101,null,1,null,null,null,"Неверно"]
[102,null,3,null,null,null,"Неверно"]
[103,null,1,null,null,null,"Неверно"]
[104,null,3,null,null,null,"Неверно"]
[105,null,2,null,null,null,"Неверно"]
[106,null,2,null,null,null,"Неверно"]
[107,null,2,null,null,null,"Неверно"]
[108,null,2,null,null,null,"Неверно"]
[109,null,2,null,null,null,"Неверно"]
[110,null,2,null,null,null,"Неверно"]
[111,null,2,null,null,null,"Неверно"]
[112,null,2,null,null,null,"Неверно"]
[113,null,2,null,null,null,"Неверно"]
[114,null,2,null,null,null,"Неверно"]
[115,null,1,null,null,null,"Неверно"]
[116,null,2,null,null,null,"Неверно"]
[117,null,1,null,null,null,"Неверно"]
[118,null,3,null,null,null,"Неверно"]
[119,null,2,null,null,null,"Неверно"]
[120,null,3,null,null,null,"Неверно"]
[121,null,2,null,null,null,"Неверно"]
[122,null,1,null,null,null,"Неверно"]
[123,null,1,null,null,null,"Неверно"]
[124,null,1,null,null,null,"Неверно"]
[125,null,1,null,null,null,"Неверно"]
[126,null,3,null,null,null,"Неверно"]
[127,null,1,null,null,null,"Неверно"]
[128,null,2,null,null,null,"Неверно"]
[129,null,2,null,null,null,"Неверно"]

{"sheet":"1","index":2,"n_rows":3,"n_cols":15,"rows_kept":3,"cut":false,"hidden":false,"merged":[]}
[null,"Вопрос 1",null,null,null,null,null,null,null,null,null,null,"Выбран вариант",null,0]
[]
[null,"Оружие - это"]

{"sheet":"2","index":3,"n_rows":3,"n_cols":15,"rows_kept":3,"cut":false,"hidden":false,"merged":[]}
[null,"Вопрос 2",null,null,null,null,null,null,null,null,null,null,"Выбран вариант",null,1]
[]
[null,"Огнестрельное оружие - это"]

{"sheet":"3","index":4,"n_rows":3,"n_cols":15,"rows_kept":3,"cut":false,"hidden":false,"merged":[]}
[null,"Вопрос 3",null,null,null,null,null,null,null,null,null,null,"Выбран вариант",null,0]
[]
[null,"В соответствии с законном «Об оружии», основными частями огнестрельного оружия являются:"]

{"sheet":"4","index":5,"n_rows":3,"n_cols":15,"rows_kept":3,"cut":false,"hidden":false,"merged":[]}
[null,"Вопрос 4",null,null,null,null,null,null,null,null,null,null,"Выбран вариант",null,0]
[]
[null,"Какие части в соответствии с законом «Об оружии» не являются основными в огнестрельном оружии?"]

{"sheet":"5","index":6,"n_rows":3,"n_cols":15,"rows_kept":3,"cut":false,"hidden":false,"merged":[]}
[null,"Вопрос 5",null,null,null,null,null,null,null,null,null,null,"Выбран вариант",null,0]
[]
[null,"Боеприпасы -это"]

{"sheet":"6","index":7,"n_rows":3,"n_cols":15,"rows_kept":3,"cut":false,"hidden":false,"merged":[]}
[null,"Вопрос 6",null,null,null,null,null,null,null,null,null,null,"Выбран вариант",null,0]
[]
[null,"Патрон -это"]